Cogmind - Beta 15 @@@ ROGUE MODE // 2025.05.08 @ 21:42:16 Player: Eggpie Result: Destroyed by Y-54 Guardian with Flak Gun Performance ------------- Evolutions (3) 1500 Regions Visited (4) 800 Robots Destroyed (42) 210 Value Destroyed (846) 846 Prototype IDs (10) 200 Alien Tech Used (0) 0 Bonus (0) 0 TOTAL SCORE: 3556 Bonus ------- None Cogmind --------- Core Integrity 0/700 Matter 237/300 Energy 19/150 System Corruption 3% Temperature Warm (102) Movement Core (150) Ox2 Location -7/Factory Parts ------- > --- POWER (1) -------- Micro Nuclear Core > --- PROPULSION (3) --- (None) > --- UTILITY (6) ------ Advanced Weight Redist. System Machine Analyzer Advanced Terrain Scan Processor Layered Light Armor Plating Hacking Suite Improved Trap Extractor (0/6) > --- WEAPON (3) ------- Improved Spread Laser Heavy Ion Cannon Heavy Ion Cannon > --- INVENTORY (5) ---- Compact Battery (68) Compact Matter Pod (141) Hacking Suite Recalibrator Peak State ------------ > --- POWER ------------ Enhanced Nuclear Core > --- PROPULSION ------- Cesium-ion Thruster Cesium-ion Thruster Xenon Bombardment Thruster > --- UTILITY ---------- Medium Storage Unit Advanced Weight Redist. System Machine Analyzer ECM Suite Hacking Suite Hacking Suite > --- WEAPON ----------- Arc Projector Proton Missile Launcher Improved Datajack > --- INVENTORY -------- Light Nuclear Core Enhanced Nuclear Core Micro Nuclear Core Cesium-ion Thruster Improved Cooling System Compact Battery Compact Matter Pod Advanced Terrain Scan Processor Improved Weapon Shielding Hacking Suite [Rating: 43] Favorites ----------- Power Improved Ion Engine Engine Improved Ion Engine Power Core Enhanced Nuclear Core Propulsion Aluminum Leg Leg Aluminum Leg Hover Unit Improved Airjet Flight Unit Flight Unit Utility Hacking Suite Device Weight Redist. System Storage Medium Storage Unit Processor Machine Analyzer Hackware Hacking Suite Protection Layered Light Armor Plating Weapon Light Assault Rifle Energy Gun Improved EM Shotgun Energy Cannon Plasma Cannon Ballistic Gun Light Assault Rifle Launcher Proton Missile Launcher Slashing Weapon Scythe Special Melee Weapon Improved Datajack Build | -11 -10 -9 -8 -7 ------- Run | Yrd Mat Mat Mat Fac Slots Evolved 6 | . . 2 2 2 Power . | . . . . . Propulsion 1 | . . . 1 . Utility 4 | . . 2 1 1 Weapon 1 | . . . . 1 Parts Attached 61 | 7 6 19 7 22 Power 10 | 1 1 3 . 5 Engine 6 | 1 1 3 . 1 Core 4 | . . . . 4 Reactor . | . . . . . Propulsion 16 | 2 1 6 3 4 Treads . | . . . . . Leg 4 | 2 1 1 . . Wheel . | . . . . . Hover 3 | . . . 3 . Flight 9 | . . 5 . 4 Utility 17 | 2 2 4 3 6 Device 5 | 1 . 2 . 2 Storage 3 | 1 1 . 1 . Processor 3 | . . . 1 2 Hackware 4 | . 1 2 1 . Protection 2 | . . . . 2 Artifact . | . . . . . Weapon 18 | 2 2 6 1 7 Energy Gun 7 | . 1 3 1 2 Energy Cannon 3 | . . . . 3 Ballistic Gun 3 | 2 . 1 . . Ballistic Cannon . | . . . . . Launcher 1 | . . . . 1 Special Weapon . | . . . . . Impact Weapon . | . . . . . Slashing Weapon 1 | . . 1 . . Piercing Weapon . | . . . . . Special Melee Weapon 3 | . 1 1 . 1 Unidentified Prototypes 4 | . 1 . 1 2 Parts Lost 20 | . 1 8 . 11 Power 2 | . . 1 . 1 Propulsion 8 | . . 3 . 5 Utility 4 | . 1 1 . 2 Weapon 6 | . . 3 . 3 Highest Loss Streak 3 | . 1 3 . 3 To Critical Strikes . | . . . . . Average Backups 6 | . 5 8 7 7 Power . | . . . 1 1 Propulsion . | . . . . . Utility 3 | . . 3 3 5 Weapon 1 | . 4 1 . . Tool/Special . | . . . . . Unused Backups 21 | . 2 9 1 9 Power 1 | . . . . 1 Propulsion 3 | . . 2 1 . Utility 8 | . . . . 8 Weapon 6 | . 2 4 . . Tool/Special 3 | . . 3 . . Average Slot Usage (%) 91 | . 98 93 97 82 Engine 8 | . 14 10 9 1 Core 1 | . . . . 5 Leg 11 | . 28 13 . . Hover 2 | . . . 2 8 Flight 6 | . . 6 23 7 Device 7 | . . 4 17 13 Storage 10 | . 18 11 9 4 Processor 2 | . . . 1 9 Hackware 18 | . 7 26 16 13 Energy Gun 8 | . 3 11 9 5 Ballistic Gun 6 | . 16 3 9 2 Special Melee Weapon 4 | . 7 5 . 2 Peak Build Rating 43 | 7 12 23 34 43 Average Rating 21 | 4 9 19 19 36 On Entrance 13 | . 7 12 15 34 Naked Turns . | . . . . . Heaviest Build 33 | 12 23 24 23 33 Greatest Support 33 | 20 20 20 33 33 Greatest Overweight (x) 4 | . 1 2 1 4 Average Overweight (x) . | . . . . . Largest Inventory Capacity 30 | 8 10 10 30 10 Average Capacity 9 | 7 9 10 10 8 Most Carried 10 | 5 10 10 10 10 Average Carried 7 | . 6 8 7 7 Final Capacity 10 | 8 10 10 10 5 Final Carried 10 | . 10 10 10 4 Class Distribution -------------------- 44% | Hacker-Mutant 31% | Scavenger-Mutant 20% | Mutant Dominant Class ---------------- Scavenger-Mutant | -10/Materials Hacker-Mutant | -9/Materials Scavenger-Mutant | -8/Materials Hacker-Mutant | -7/Factory Resources | -11 -10 -9 -8 -7 ----------- Run | Yrd Mat Mat Mat Fac Matter Collected 1079 | 306 135 241 . 397 Remotely . | . . . . . Salvage Created 1403 | 129 145 772 . 357 Parts 95 | 9 9 57 . 20 Haulers Intercepted 2 | . . 2 . . Recyclers Shooed 1 | . . 1 . . Parts Field Recycled . | . . . . . Retrieved Matter . | . . . . . Parts Self-Destructed . | . . . . . Prevented . | . . . . . Kills | -11 -10 -9 -8 -7 ------- Run | Yrd Mat Mat Mat Fac Combat Hostiles Destroyed 23 | . 3 14 . 6 Melee 1 | . . 1 . . Guns 18 | . 3 13 . 2 AOE 3 | . . . . 3 Classes Destroyed 11 | 2 2 6 . 1 Worker 4 | . . 4 . . Builder 1 | . . 1 . . Tunneler 4 | 3 . . . 1 Hauler 2 | . . 2 . . Recycler 2 | 1 . 1 . . Operator 2 | . 1 . . 1 Watcher 4 | . . 3 . 1 Swarmer 9 | . . 9 . . Grunt 11 | . 3 4 . 4 Sentry 2 | . . 1 . 1 Programmer 1 | . . . . 1 Best Kill Streak 7 | 3 2 7 . 4 Combat Bots Only 4 | . 2 4 . 3 Max Kills in Single Turn 2 | 1 1 2 . 1 Gunslinging . | . . . . . Exploded 1 | . . . . 1 Melee 1 | . . 1 . . Uniques/NPCs Destroyed . | . . . . . Combat | -11 -10 -9 -8 -7 -------- Run | Yrd Mat Mat Mat Fac Hostile Shots Fired 458 | . 25 137 19 277 Missed 165 | . 9 33 7 116 Hits 293 | . 16 104 12 161 Melee 2 | . . . . 2 Projectile 291 | . 16 104 12 159 Critical Strikes 9 | . 1 . . 8 Actively Blocked 1 | . . . . 1 Part Disruptions 1 | . . . . 1 Damage Taken 3269 | . 204 964 199 1902 Core 986 | . 34 215 32 705 Absorbed by Shields . | . . . . . Redirected to Shielding 87 | . . . . 87 Core Remaining (%) 81 | 100 86 46 94 . Volleys Fired 121 | 9 20 50 . 42 Largest 3 | 2 2 2 . 3 Hottest 205 | 40 40 90 . 205 Shots Fired 195 | 18 40 79 . 58 Gun 183 | 18 40 79 . 46 Cannon 7 | . . . . 7 Launcher 5 | . . . . 5 Special . | . . . . . Kinetic 86 | 18 40 20 . 8 Thermal 42 | . . 20 . 22 Explosive . | . . . . . Electromagnetic 67 | . . 39 . 28 Robot Hit Streak 14 | 4 5 14 . 5 Robot Miss Streak 5 | 2 5 4 . 5 Penetration Max . | . . . . . Secondary Targets 4 | . 1 3 . . Max Gunslinging Chain 1 | . 1 1 . . Shots Hit Robots 136 | 9 22 64 . 41 Core Hits 79 | 7 10 37 . 25 Critical Kills . | . . . . . Critical Parts Destroyed 1 | . 1 . . . Critical Strikes 1 | . 1 . . . Destroy 1 | . 1 . . . Melee Attacks 18 | . 6 10 . 2 Impact . | . . . . . Slashing . | . . . . . Piercing . | . . . . . Sneak Attacks 14 | . 4 8 . 2 Combat Hostiles . | . . . . . Follow-up Attacks . | . . . . . Damage Inflicted 2099 | 92 169 801 . 1037 Guns 1640 | 92 169 786 . 593 Cannons 26 | . . . . 26 Explosions 408 | . . . . 408 Melee . | . . . . . Ramming 25 | . . 15 . 10 Kinetic 365 | 92 169 63 . 41 Thermal 557 | . . 140 . 417 Explosive . | . . . . . Electromagnetic 1152 | . . 583 . 569 Impact . | . . . . . Slashing . | . . . . . Piercing . | . . . . . Highest Corruption 3 | . 2 . . 3 Average Corruption 2 | . 1 . . 2 Corruption Purged . | . . . . . Corruption Blocked . | . . . . . Effects 7 | . 3 . . 4 Message Errors 4 | . 2 . . 2 Matter Fused 1 | . 1 . . . Energy Discharges 1 | . . . . 1 Parts Rejected 1 | . . . . 1 Overload Shots . | . . . . . Overflow Damage 31 | . . . . 31 Projectiles . | . . . . . Explosions 31 | . . . . 31 Melee . | . . . . . Knockbacks . | . . . . . Impact . | . . . . . Kinetic . | . . . . . Secondary . | . . . . . Self-Inflicted Damage 32 | . . 7 . 25 Shots 3 | . . . . 3 Rammed 5 | . . 1 2 2 Targets Rammed 5 | . . 1 2 2 Kicked . | . . . . . Crushed . | . . . . . Highest Temperature 509 | . 34 114 . 509 Average Temperature 75 | . 17 25 . 123 Received Heat Transfer 1254 | . 132 213 108 801 Effects 3 | . . . . 3 Shutdowns 1 | . . . . 1 Short Circuit 1 | . . . . 1 Damage (minor) 1 | . . . . 1 Siege Activations . | . . . . . Martial Activations . | . . . . . Shielding Activations . | . . . . . Robots Disrupted . | . . . . . Combat Hostiles . | . . . . . Robots Corrupted 1 | . . . . 1 Combat Hostiles 1 | . . . . 1 Parts Fried 6 | . . 4 . 2 Impact Corruptions . | . . . . . Robots Melted . | . . . . . Combat Hostiles . | . . . . . Parts Melted 1 | . . 1 . . Heat Transferred 695 | . . 325 . 370 Parts Sabotaged . | . . . . . Parts Stolen . | . . . . . Parts Stripped . | . . . . . Power Chain Reactions 1 | . . . . 1 Alert | -11 -10 -9 -8 -7 ------- Run | Yrd Mat Mat Mat Fac Maximum Alert Level . | . . . . . Low Security (%) 100 | 100 100 100 100 100 Level 1 . | . . . . . Level 2 . | . . . . . Level 3 . | . . . . . Level 4 . | . . . . . Level 5 . | . . . . . High Security . | . . . . . Max Security . | . . . . . Peak Influence 94 | 10 50 94 27 72 Initial 27 | . . . 27 . Average 19 | 2 11 23 6 24 Influence Increases 794 | 20 85 404 10 275 Destroy 0b10 Robot/C 460 | . 60 280 . 120 Destroy 0b10 Robot/NC 95 | 20 5 55 . 15 Destroy Leader 112 | . 20 50 . 42 Successful Hack 46 | . . 4 10 32 Destroy Structure 6 | . . . . 6 Lose Combat Pursuer 75 | . . 15 . 60 Influence Decreases 766 | 20 85 339 75 247 Entered New Map 38 | . . . 38 . Time Decay 540 | 20 85 235 37 163 Lost Part 158 | . . 74 . 84 Purge Threat 30 | . . 30 . . Squads Dispatched 8 | . 1 1 . 6 Investigation 2 | . . . . 2 Extermination 1 | . . . . 1 Reinforcement 3 | . 1 1 . 1 Assault . | . . . . . Garrison 2 | . . . . 2 Intercept . | . . . . . Searches Triggered . | . . . . . Construction Impeded . | . . . . . Haulers Reinforced . | . . . . . Active Scanning Responses . | . . . . . Cargo Convoy Interrupts . | . . . . . Stealth | -11 -10 -9 -8 -7 --------- Run | Yrd Mat Mat Mat Fac Distress Signals 3 | . . 2 . 1 Communications Jammed . | . . . . . Distress Signals . | . . . . . Times Spotted 66 | . 9 24 6 27 Peak Tracking Total 4 | . 3 4 3 4 Tactical Retreats 11 | . . 1 1 9 Traps | -11 -10 -9 -8 -7 ------- Run | Yrd Mat Mat Mat Fac Traps Triggered 4 | . 2 . . 2 Indirectly . | . . . . . Trap Hack Attempts . | . . . . . Triggered . | . . . . . Disarmed . | . . . . . Reprogrammed . | . . . . . Reused . | . . . . . Traps Extracted . | . . . . . Installed . | . . . . . Triggered . | . . . . . Machines | -11 -10 -9 -8 -7 ---------- Run | Yrd Mat Mat Mat Fac Machines Disabled . | . . . . . Max in Single Turn . | . . . . . Machines Repaired . | . . . . . Machines Dismantled . | . . . . . Machines Sabotaged . | . . . . . Overloaded Fab Kills . | . . . . . Hacking | -11 -10 -9 -8 -7 --------- Run | Yrd Mat Mat Mat Fac Machines Accessed 16 | . 2 3 4 7 Terminals 12 | . 1 2 4 5 Fabricators . | . . . . . Repair Stations . | . . . . . Recycling Units 3 | . 1 1 . 1 Scanalyzers 1 | . . . . 1 Garrison Access . | . . . . . Total Hacks 53 | . 5 7 13 28 Successful 33 | . 2 7 9 15 Failed 20 | . 3 . 4 13 Catastrophic . | . . . . . Database Lockouts . | . . . . . Manual . | . . . . . Terminals 45 | . 4 5 13 23 Fabricators . | . . . . . Repair Stations . | . . . . . Recycling Units 5 | . 1 2 . 2 Scanalyzers 3 | . . . . 3 Garrison Access . | . . . . . Terminal Hacks 28 | . 1 5 9 13 Record 4 | . . 1 2 1 Part Schematic 4 | . . . . 4 Robot Analysis 1 | . . . 1 . Prototype ID Bank 3 | . . 1 1 1 Open DSF 2 | . . . . 2 Branch Access Points 1 | . . . 1 . Emergency Access Points 1 | . . . 1 . Alert Level 4 | . 1 1 1 1 Unreport Threat 1 | . . 1 . . Dispatch Records 1 | . . . . 1 Maintenance Status 1 | . . . . 1 Patrol Status 1 | . . 1 . . Transport Status 1 | . . . . 1 Assault Status 1 | . . . 1 . Zone Layout 2 | . . . 1 1 Fabricator Hacks . | . . . . . Repair Station Hacks . | . . . . . Recycling Unit Hacks 4 | . 1 2 . 1 Report Inventory 3 | . 1 1 . 1 Retrieve Matter 1 | . . 1 . . Scanalyzer 1 | . . . . 1 Insert Component 1 | . . . . 1 Garrison Access Hacks . | . . . . . Unauthorized Hacks . | . . . . . Terminals . | . . . . . Fabricators . | . . . . . Repair Stations . | . . . . . Recycling Units . | . . . . . Scanalyzers . | . . . . . Garrison Access . | . . . . . Data Cores Recovered 1 | . . . . 1 Used . | . . . . . Hacking Detections 13 | . 2 2 3 6 Full Trace Events 2 | . . . . 2 Feedback Events . | . . . . . Feedback Blocked . | . . . . . Robot Schematics Acquired . | . . . . . Robots Built . | . . . . . Authchips . | . . . . . Time . | . . . . . Total Robot Build Rating . | . . . . . Part Schematics Acquired 4 | . . . . 4 Parts Built . | . . . . . Authchips . | . . . . . Time . | . . . . . Total Part Build Rating . | . . . . . Parts Repaired . | . . . . . Time . | . . . . . Parts Recycled . | . . . . . Recycled Matter . | . . . . . Retrieved Matter . | . . . . . Retrieved Components . | . . . . . Parts Scanalyzed 1 | . . . . 1 Part Schematics Acquired . | . . . . . Parts Damaged . | . . . . . Bothacking | -11 -10 -9 -8 -7 ------------ Run | Yrd Mat Mat Mat Fac Used RIF Installer . | . . . . . Robots Hacked 10 | . 4 5 . 1 Non-combat 10 | . 4 5 . 1 Combat . | . . . . . Robot Hacks Applied 16 | . 5 9 . 2 parse_system 5 | . 2 3 . . no_distress 9 | . 2 6 . 1 find_dsf 1 | . . . . 1 find_recycling 1 | . 1 . . . Relay Couplers Released . | . . . . . Fabnet Peak Effective % . | . . . . . Robots Rewired . | . . . . . Allies Hacked . | . . . . . Hacks Repelled . | . . . . . Allies | -11 -10 -9 -8 -7 -------- Run | Yrd Mat Mat Mat Fac Total Allies . | . . . . . Largest Group . | . . . . . Highest-Rated Group . | . . . . . Highest-Rated Ally . | . . . . . Total Orders . | . . . . . Ally Attacks . | . . . . . Total Damage . | . . . . . Kills . | . . . . . Allies Corrupted . | . . . . . Allies Melted . | . . . . . Intel | -11 -10 -9 -8 -7 ------- Run | Yrd Mat Mat Mat Fac Active Infowar (turns) 752 | 5 18 31 177 521 Optics 15 | . . . 15 . Seismic 23 | 5 18 . . . Machine Analysis 511 | . . . . 511 ECM 448 | . . 31 177 240 Robot Analysis Total 1 | . . . 1 . Derelict Logs Recovered . | . . . . . Drone Launches . | . . . . . Drone Recoveries . | . . . . . Exploration | -11 -10 -9 -8 -7 ------------- Run | Yrd Mat Mat Mat Fac Turns Passed 1998 | 90 386 824 177 521 Spaces Moved 1458 | 53 222 401 148 634 Core 56 | 16 . 18 . 22 Treads . | . . . . . Legs 501 | 37 222 242 . . Wheels . | . . . . . Hover 341 | . . . 24 317 Flight 560 | . . 141 124 295 Fastest Speed 29 | 50 120 37 42 29 Average Speed 100 | 98 133 157 103 52 Slowest Speed 355 | 120 190 260 114 355 Overloaded Moves . | . . . . . Propulsion Burnouts . | . . . . . Robots Hopped . | . . . . . Potential Cave-ins . | . . . . . Cave-ins Triggered . | . . . . . Exploration Rate (%) 25 | 4 50 33 22 18 Regions Visited 4 Branch Regions . Pre-discovered Areas . | . . . . . Known Exits Taken . | . . . . . Unknown Exits Taken 4 | 1 1 1 1 . Scrap Searched . | . . . . . Spaces Dug . | . . . . . Terrain Destroyed 4 | . . . . 4 Melee . | . . . . . Projectile . | . . . . . AOE 4 | . . . . 4 Terrain Rammed . | . . . . . Walls Destroyed . | . . . . . Machines Disabled . | . . . . . Actions | -11 -10 -9 -8 -7 --------- Run | Yrd Mat Mat Mat Fac Total 1806 | 74 273 521 173 765 Wait 28 | . . . . 28 Move 1454 | 52 221 400 147 634 Hop . | . . . . . Pick Up 59 | 6 14 21 7 11 Fast Attach 22 | 1 2 4 2 13 Attach 29 | 6 1 7 6 9 Detach 2 | . . . 1 1 Swap 19 | . 3 11 1 4 Drop 49 | . 6 17 7 19 Fire 121 | 9 20 50 . 42 Melee 18 | . 6 10 . 2 Ram 5 | . . 1 2 2 Kick . | . . . . . Crush . | . . . . . Escape Stasis . | . . . . . Rewire . | . . . . . Trap . | . . . . . Miscellaneous . | . . . . . Route ------- -11/Scrapyard -10/Materials (discovered 2 exits: *Mat / [*Min]) -9/Materials -8/Materials -7/Factory History --------- Turn | Location | Event 3 | -11/Scrapyard | Discovered new exit (range 15) 91 | -11/Scrapyard | Entered Materials 336 | -10/Materials | Discovered new exit (range 12) 451 | -10/Materials | Discovered new exit (range 16) 477 | -10/Materials | Entered another Materials area 477 | -9/Materials | Evolved 2 slots: Utility x2 776 | -9/Materials | Build established: Hacker-Mutant 1035 | -9/Materials | Lost 3 parts (1n2w) 1143 | -9/Materials | Core integrity fell below 50% 1297 | -9/Materials | Discovered new exit (range 3) 1301 | -9/Materials | Entered another Materials area 1301 | -8/Materials | Evolved 2 slots: Propulsion x1, Utility x1 1364 | -8/Materials | Build established: Scavenger-Mutant 1448 | -8/Materials | Discovered new exit (range 15) 1478 | -8/Materials | Entered Factory 1478 | -7/Factory | Evolved 2 slots: Utility x1, Weapon x1 1788 | -7/Factory | Lost 3 parts (1n1u1w) 1806 | -7/Factory | Core integrity fell below 50% 1857 | -7/Factory | Garrison activated, responded to threat 1928 | -7/Factory | Core integrity fell below 20% 1999 | -7/Factory | Destroyed by Y-54 Guardian with Flak Gun Last Messages --------------- 01919_ Acquired Plasma Cannon. 01934_ Adv. Terrain Scan Processor broken. 01934_ Overheating: Short circuit. 01938_ Power failure, Enh. Nuclear Core shutdown. 01942_ Overheating: Broken Adv. Terrain Scan Processor damaged (-8). 01945_ Cesium-ion Thruster destroyed. 01947_ Slammed into G-47 Trooper. 01953_ SWZ YNRFZBSQ1Q,&VNEYH5IG0PS 01967_ >> Machine Analyzer network decryption results: 01967_ Repair Station x3 01977_ Acquired Hvy. Ion Cannon. 01979_ System corrupted: Energy discharge (-75). 01979_ Enh. Nuclear Core destroyed. 01979_ Dropped Plasma Cannon. 01980_ Acquired Hvy. Ion Cannon. 01991_ Critical hit (Burn: +37). 01993_ G-47 Trooper destroyed. Map ----- +----------------------------------------------------+ | ??# """" =[* #???# #? ?????????????????????? | | ??# """" =* #???# #?? ! ???????????????????? | | ??# * #???# #??? ????????????????????? | | ########+########## # ???????????????????????? | | # ???"???????????????????? | | # ??""???????????????????? | | # ???G???????????????????? | | ? ??""?????""""??????????? | | ?? ???"?????""""??????????? | | #+### ##############? ?????????""""??????????? | | ????# # ##;#????????""""??????????? | | ????# # /! ## #??????????????????????? | | ????# # ! """ ## #????????""""??????????? | | ????# # ! """ ## #??"""???""""??????????? | | ????# # / """ ## #?""R"?#?""""??????????? | | ????# # ## +?""?" #?""""??????????? | | ????# # ## # ? #???????????????? | | ##### ###/########### # #???????????????? | | Y + #???????????????? | | ########Y########???????????????? | | #???# % #????????????????????? | | #???# ! #????????????????????? | | #???# #????????????????????? | | ### T#########+#######] ] ! #????????????????????? | | ??####??# #]] #????????????????????? | | ????????# #]] @ #????????????????????? | | ????????# ########????????????????????? | | ????????# #???????????????????????????? | | ????????# #???????????????????????????? | | ????????# #???????????????????????????? | | ????????# #???????????????????????????? | | ????????# #???????????????????????????? | | ????????# #???????????????????????????? | | ????????# #???????????????????????????? | | ????????# #???????????????????????????? | | ????????# #???????????????????????????? | | ????????##############???????????????????????????? | | ?????????????????????????????????????????????????? | | ?????????????????????????????????????????????????? | | ?????????????????????????????????????????????????? | | ?????????????????????????????????????????????????? | | ?????????????????????????????????????????????????? | | ?????????????????????????????????????????????????? | | ?????????????????????????????????????????????????? | | ?????????????????????????????????????????????????? | | ?????????????????????????????????????????????????? | | ?????????????????????????????????????????????????? | | ?????????????????????????????????????????????????? | | ?????????????????????????????????????????????????? | | ?????????????????????????????????????????????????? | +----------------------------------------------------+ Best States ------------- Heat Dissipation 34 Energy Generation 17 Energy Capacity 300 Matter Stores 300 Matter Capacity 300 Sight Range 18 Terrain Scan Density 210 ECM Strength 1 Additional Mass Support 9 Armor Coverage 150 Weapon Shielding 66 Evasion (%) 64 Offensive Hacking 30 Trap Extractor Capacity 6 Item Schematics ----------------- Imp. Melee Analysis Suite | -7/Factory | Hacked Antigrav System | -7/Factory | Hacked Med. Reflective Plating | -7/Factory | Hacked Imp. Transmission Jammer | -7/Factory | Hacked Robot Schematics ------------------ None Fabricated ------------ Nothing Repaired ---------- Nothing Alien Tech Used ----------------- None Achievements -------------- None Challenges ------------ None Game ------ Seed RagnarokLobotomyFilter Manual? 0 Play Time 00:41:15 Cumulative 23.3 hours Start 2025.05.08 @ 21:02:36 End 2025.05.08 @ 21:42:16 Sessions 1 Manual Loads 0 Difficulty Rogue Special Mode None Game No. 9 Rogue 3 Adventurer 0 Explorer 6 Win Type - Total 1 Types 1/0/0/0/0/0/0/0/0/0 Lore% 11 Gallery% 37 Achievement% 39 Wizard Run 0 Options --------- Layout 1 ASCII 0 Keyboard 0 Movement Mouse Keybinds 0 Fullscreen 1 Font 36/Smallcaps Map View 50x35 Zoom Use 0% Tactical HUD 1 Map Filters NONE Filters NONE Steam 1 RUN: 56a92e4f-6131-4612-be51-dd87de9ac37b